fUSD/lending_fUSD_20250422
["ID","MTS","AMOUNT","RATE_DAILY","PERIOD"]
[358613010,1745311286445,517.4231119,0.00054794,120]
[358613011,1745311286483,500.0,0.00054794,120]
[358613012,1745311287663,5258.0,0.00054794,120]
[358613013,1745311288576,500.0,0.00054794,56]
[358613014,1745311289393,200.0,0.00054521,30]
[358613015,1745311289601,435.61224027,0.00054794,120]
[358613016,1745311289727,508.9,0.00054794,120]
[358613017,1745311290177,500.0,0.00054794,120]
[358613018,1745311290816,500.0,0.00054794,30]
[358613019,1745311290931,500.0,0.00054794,120]
[358613020,1745311291672,500.0,0.00054794,120]
[358613021,1745311293313,500.0,0.00054794,120]
[358613022,1745311294812,500.0,0.00054794,120]
[358613023,1745311296518,570.89289938,0.00054794,120]
[358613024,1745311297630,500.0,0.00054794,60]
[358613025,1745311303180,500.0,0.00054794,120]
[358613026,1745311303681,500.0,0.00054794,120]
[358613027,1745311307443,500.0,0.00054794,120]
[358613028,1745311307510,500.0,0.00054794,120]
[358613029,1745311311818,500.0,0.00054794,120]
[358613030,1745311311850,155.93051386,0.00054794,120]
[358613031,1745311313863,500.0,0.00054794,120]
[358613032,1745311314137,1754.61,0.00054794,120]
[358613033,1745311315116,500.0,0.00054794,120]
[358613034,1745311315372,185.37032525,0.00054794,120]
[358613035,1745311320758,500.0,0.00054794,120]
[358613036,1745311320841,295.92327605,0.00054794,120]
[358613037,1745311322770,500.0,0.00054794,120]
[358613038,1745311322987,500.0,0.00054794,120]
[358613039,1745311323177,596.60046588,0.00054794,120]
[358613040,1745311323210,500.0,0.00054794,120]
[358613041,1745311324466,513.74,0.00054794,120]
[358613042,1745311324883,-500.0,0.000196,5]
[358613043,1745311325370,631.6,0.00054794,120]
[358613044,1745311329030,500.0,0.00054794,120]
[358613045,1745311330175,500.0,0.00054794,120]
[358613046,1745311331422,500.0,0.00054794,120]
[358613047,1745311332193,1000.0,0.00054794,120]
[358613048,1745311334068,50000.0,0.00054,35]
[358613049,1745311335047,500.0,0.00054794,120]
[358613050,1745311335764,500.0,0.00054794,120]
[358613051,1745311335864,500.0,0.00054794,120]
[358613052,1745311338343,50000.0,0.00054,36]
[358613053,1745311341303,517.81,0.00054794,120]
[358613054,1745311341734,50000.0,0.00054,37]
[358613055,1745311342335,500.0,0.00054794,120]
[358613056,1745311344786,50000.0,0.00054,38]
[358613057,1745311346373,500.0,0.00054794,120]
[358613058,1745311347373,500.00382001,0.00054795,120]
[358613059,1745311348210,50000.0,0.00054,39]
[358613060,1745311348941,500.0,0.00054794,120]
[358613061,1745311349762,977.88,0.00054794,120]
[358613062,1745311349909,613.91525191,0.00054794,120]
[358613063,1745311351214,500.0,0.00054794,120]
[358613064,1745311352511,500.0,0.00054794,120]
[358613065,1745311353793,502.88,0.00054794,120]
[358613066,1745311357660,500.0,0.00054794,118]
[358613067,1745311357763,500.0,0.00054794,120]
[358613068,1745311358397,540.97023837,0.00054794,120]
[358613069,1745311359052,244.34610874,0.00054794,120]
[358613070,1745311360319,500.0,0.00054794,120]
[358613071,1745311361241,500.0,0.00054794,120]
[358613072,1745311364122,500.0,0.00054794,120]
[358613073,1745311364656,500.0,0.00054794,120]
[358613074,1745311365108,500.0,0.00054794,120]
[358613075,1745311365214,500.0,0.00054794,120]
[358613076,1745311366135,231.09,0.00054794,120]
[358613077,1745311367761,500.0,0.00054794,120]
[358613078,1745311368665,500.0,0.00054794,120]
[358613079,1745311369441,500.0,0.00054794,120]
[358613080,1745311370532,500.0,0.00054794,120]
[358613081,1745311371646,500.0,0.00054794,120]
[358613082,1745311372891,258.7395071,0.00054794,120]
[358613083,1745311373255,959.97,0.00054794,120]
[358613084,1745311375215,500.0,0.00054794,120]
[358613085,1745311379671,500.0,0.00054794,120]
[358613086,1745311381723,500.0,0.00054794,120]
[358613087,1745311382731,500.0,0.00054794,120]
[358613088,1745311382926,500.0,0.00054794,120]
[358613089,1745311383748,500.0,0.00054794,120]
[358613090,1745311386971,500.0,0.00054794,120]
[358613091,1745311389858,500.0,0.00054794,120]
[358613092,1745311390822,500.0,0.00054794,120]
[358613093,1745311391545,500.0,0.00054794,120]
[358613094,1745311392721,1000000.0,0.000545,120]
[358613095,1745311395081,500.0,0.00054794,120]
[358613096,1745311395903,500.0,0.00054794,120]
[358613097,1745311397567,500.0,0.00054794,120]
[358613098,1745311400227,404764.71701062,0.000545,120]
[358613099,1745311644392,-30383.71386623,0.00047737,30]
[358613100,1745311644422,-167.3,0.000493,60]
[358613101,1745311644448,-190.0,0.00054,120]
[358613102,1745311644477,-595235.28298938,0.000545,120]
[358613103,1745311644506,-1000000.0,0.000545,120]
[358613104,1745311644533,-1000000.0,0.000545,120]
[358613105,1745311644562,-1000000.0,0.000545,120]
[358613106,1745311644591,-1000000.0,0.000545,120]
[358613107,1745311644620,-374023.70314439,0.000545,120]
[358613115,1745311832308,-1166.6660776,0.00019499,2]
[358613116,1745311832414,-300.0,0.00019499,2]
[358613117,1745311832426,-2693.78631134,0.00019499,2]
[358613118,1745311832468,-1124.49855846,0.00019499,2]
[358613119,1745311832480,-973.68209554,0.00019499,2]
[358613120,1745311832578,-639.38233996,0.00019499,2]
[358613123,1745311832589,-2551.93954754,0.00019499,2]
[358613125,1745311832601,-585.30398229,0.00019499,2]
[358613130,1745311838696,-5090.50705679,0.00019499,2]
[358613131,1745311838706,-250.0,0.000195,2]
[358613132,1745311838716,-6617.31369782,0.000195,2]
[358613133,1745311838738,-569.56825562,0.000195,2]
[358613134,1745311838750,-1686.50297933,0.000195,2]
[358613317,1745311840817,-173.82,0.00019364,2]
[358613319,1745311840828,-870.05316363,0.000195,2]
[358613569,1745311843379,-6626.025,0.000195,2]
[358613882,1745311846363,-2374.29305373,0.000195,2]
[358613953,1745311846743,-747.12822492,0.000195,2]
[358613955,1745311846755,-1147.69137622,0.000195,2]
[358613960,1745311846792,-7438.8159,0.000195,2]
[358614097,1745311858028,-94789.65824873,0.000195,2]
[358614098,1745311858054,-168.50481024,0.000195,2]
[358614099,1745311858079,-4986.41651816,0.000195,2]
[358614100,1745311858102,-4986.41651808,0.00019544,2]
[358614101,1745311858126,-4986.41651808,0.00019589,2]
[358614102,1745311858149,-162.065,0.000196,2]
[358614103,1745311858172,-136406.57429139,0.000196,5]
[358614104,1745311858195,-30383.71386623,0.000196,2]
[358614105,1745311858218,-4986.41651808,0.00019633,2]
[358614106,1745311858242,-4986.41651808,0.00019678,2]
[358614107,1745311858264,-4429.3953,0.000197,2]
[358614108,1745311858288,-4986.41651808,0.00019722,2]
[358614109,1745311858310,-183.84,0.00019732,2]
[358614110,1745311858334,-4986.41651808,0.00019767,2]
[358614111,1745311858356,-1117.96,0.00019785,2]
[358614112,1745311858378,-11189.7156,0.000198,2]
[358614113,1745311858400,-896.7283,0.000198,2]
[358614114,1745311858422,-3157.6,0.000198,2]
[358614115,1745311858443,-4986.41651808,0.00019811,2]
[358614116,1745311858467,-4986.41651808,0.00019856,2]
[358614117,1745311858489,-306.53,0.0001987,2]
[358614118,1745311858511,-1180.52,0.0001987,2]
[358614119,1745311858532,-4119.71,0.0001987,2]
[358614120,1745311858553,-11593.58,0.0001987,2]
[358614121,1745311858576,-87069.8188,0.000199,2]
[358614122,1745311858598,-191.42256831,0.000199,2]
[358614123,1745311858619,-14433.35,0.00019936,2]
[358614124,1745311858640,-591.19722479,0.00019973,2]
[358614125,1745311858662,-500.0,0.00019973,2]
[358614126,1745311858685,-498.40266184,0.00019973,2]
[358614127,1745311858707,-200.0,0.00019973,2]
[358614128,1745311858729,-311.41616023,0.00019973,2]
[358614129,1745311858755,-500.0,0.00019973,2]
[358614130,1745311858776,-500.0,0.00019973,2]
[358614131,1745311858798,-200.00000001,0.0001999,2]
[358614132,1745311858823,-5514160.54850543,0.0002,2]
[358614134,1745311909522,-1000.0,0.000195,2]
[358614135,1745311909545,-4986.41651808,0.000199,2]
[358614136,1745311909567,-204.12031234,0.00019973,2]
[358614137,1745311909591,-804789.46316958,0.0002,2]
[358614139,1745311941561,-2500.0,0.000195,2]
[358614140,1745311941584,-191.42256831,0.000199,2]
[358614141,1745311941608,-441264.57743169,0.0002,2]
[358614142,1745311966026,-152.49,0.000488,45]
[358614143,1745311966059,-152.49,0.000488,45]
[358614144,1745311966092,-152.49,0.000488,45]
[358614145,1745311966124,-152.49,0.000488,45]
[358614146,1745311966158,-152.49,0.000538,54]
[358614147,1745311966189,-152.49,0.000538,54]
[358614148,1745311966220,-152.49,0.000538,54]
[358614149,1745311966249,-152.49,0.000538,54]
[358614150,1745311966282,-152.49,0.000538,54]
[358614151,1745311966312,-152.49,0.000538,54]
[358614152,1745311966342,-152.49,0.000538,54]
[358614153,1745311966373,-152.49,0.000538,54]
[358614154,1745311966403,-190.72,0.00054,31]
[358614155,1745311966436,-625976.29685561,0.000545,120]
[358614156,1745311966466,-1000000.0,0.000545,120]
[358614157,1745311966496,-1000000.0,0.000545,120]
[358614158,1745311966525,-1000000.0,0.000545,120]
[358614159,1745311966553,-500000.0,0.000545,120]
[358614160,1745311966579,-152.32548,0.000545,120]
[358614161,1745311966608,-499999.9,0.000545,120]
[358614162,1745311966635,-152.674024,0.000545,120]
[358614163,1745311966666,-151.0,0.000545,120]
[358614164,1745311966693,-151.0,0.000545,120]
[358614165,1745311966720,-151.0,0.000545,120]
[358614166,1745311966746,-151.0,0.000545,120]
[358614167,1745311966774,-169.599553,0.000545,120]
[358614168,1745311966800,-6642.58222143,0.000545,120]
[358614169,1745311966827,-151.0,0.000545,120]
[358614170,1745311966857,-151.0,0.000545,120]
[358614171,1745311966884,-151.0,0.000545,120]
[358614172,1745311966912,-175.193807,0.000545,120]
[358614173,1745311966940,-151.0,0.000545,120]
[358614174,1745311966967,-151.0,0.000545,120]
[358614175,1745311966994,-151.0,0.000545,120]
[358614176,1745311967022,-151.0,0.000545,120]
[358614177,1745311967048,-151.0,0.000545,120]
[358614178,1745311967074,-997.85116246,0.000545,30]
[358614179,1745311967099,-151.0,0.000545,120]
[358614180,1745311967125,-151.0,0.000545,120]
[358614181,1745311967152,-151.0,0.000545,120]
[358614182,1745311967177,-212.43593,0.000545,120]
[358614183,1745311967203,-151.0,0.000545,120]
[358614184,1745311967230,-151.0,0.000545,120]
[358614185,1745311967257,-181.310253,0.000545,120]
[358614186,1745311967284,-151.0,0.000545,120]
[358614187,1745311967312,-151.0,0.000545,120]
[358614188,1745311967340,-151.0,0.000545,120]
[358614189,1745311967367,-151.0,0.000545,120]
[358614190,1745311967395,-151.0,0.000545,120]
[358614191,1745311967421,-151.0,0.000545,120]
[358614192,1745311967447,-151.0,0.000545,120]
[358614193,1745311967472,-194.278531,0.000545,120]
[358614194,1745311967501,-154.412998,0.000545,120]
[358614195,1745311967527,-154.412998,0.000545,120]
[358614196,1745311967558,-154.412998,0.000545,120]
[358614197,1745311967585,-154.412998,0.000545,120]
[358614198,1745311967612,-154.412998,0.000545,120]
[358614199,1745311967639,-153.093573,0.000545,120]
[358614200,1745311967666,-154.412998,0.000545,120]
[358614201,1745311967693,-154.412998,0.000545,120]
[358614202,1745311967722,-154.412998,0.000545,120]
[358614203,1745311967748,-154.412998,0.000545,120]
[358614204,1745311967778,-154.412998,0.000545,120]
[358614205,1745311967805,-168.179021,0.000545,120]
[358614206,1745311967833,-525.782871,0.000545,120]
[358614207,1745311967860,-525.782871,0.000545,120]
[358614208,1745311968048,-525.782871,0.000545,120]
[358614209,1745311968077,-525.782871,0.000545,120]
[358614210,1745311968104,-525.782871,0.000545,120]
[358614211,1745311968131,-525.782871,0.000545,120]
[358614212,1745311968158,-525.782871,0.000545,120]
[358614213,1745311968184,-525.782871,0.000545,120]
[358614214,1745311968211,-525.782871,0.000545,120]
[358614215,1745311968238,-525.782871,0.000545,120]
[358614216,1745311968267,-352377.7208985,0.000545,120]
[358614217,1745311971433,-647622.2791015,0.000545,120]
[358614218,1745311971462,-1000000.0,0.000545,120]
[358614219,1745311971488,-151.0,0.000545,120]
[358614220,1745311971514,-228.888657,0.000545,120]
[358614221,1745311971543,-1000000.0,0.000545,120]
[358614222,1745311971573,-1000000.0,0.000545,120]
[358614223,1745311971599,-151.0,0.000545,120]
[358614224,1745311971626,-151.0,0.000545,120]
[358614225,1745311971652,-151.0,0.000545,120]
[358614226,1745311971679,-151.0,0.000545,120]
[358614227,1745311971705,-151.0,0.000545,120]
[358614228,1745311971731,-151.0,0.000545,120]
[358614229,1745311971758,-151.0,0.000545,120]
[358614230,1745311971786,-151.0,0.000545,120]
[358614231,1745311971811,-151.0,0.000545,120]
[358614232,1745311971837,-151.0,0.000545,120]
[358614233,1745311971863,-151.0,0.000545,120]
[358614234,1745311971889,-151.0,0.000545,120]
[358614235,1745311971915,-151.0,0.000545,120]
[358614236,1745311971942,-151.0,0.000545,120]
[358614237,1745311971976,-151.0,0.000545,120]
[358614238,1745311972002,-151.0,0.000545,120]
[358614239,1745311972029,-151.0,0.000545,120]
[358614240,1745311972057,-151.0,0.000545,120]
[358614241,1745311972084,-495.873294,0.000545,120]
[358614242,1745311972111,-495.873294,0.000545,120]
[358614243,1745311972138,-495.873294,0.000545,120]
[358614244,1745311972166,-495.873294,0.000545,120]
[358614245,1745311972193,-495.873294,0.000545,120]
[358614246,1745311972220,-495.873294,0.000545,120]
[358614247,1745311972248,-495.873294,0.000545,120]
[358614248,1745311972275,-495.873294,0.000545,120]
[358614249,1745311972302,-495.873294,0.000545,120]
[358614250,1745311972329,-495.873294,0.000545,120]
[358614251,1745311972355,-151.0,0.000545,120]
[358614252,1745311972383,-167.725356,0.000545,120]
[358614253,1745311972408,-151.0,0.000545,120]
[358614254,1745311972437,-151.0,0.000545,120]
[358614255,1745311972464,-151.0,0.000545,120]
[358614256,1745311972490,-151.0,0.000545,120]
[358614257,1745311972517,-157.852598,0.000545,120]
[358614258,1745311972543,-276.936357,0.000545,120]
[358614259,1745311972568,-634.522,0.000545,120]
[358614260,1745311972594,-2637.987686,0.000545,120]
[358614261,1745311972620,-2637.987686,0.000545,120]
[358614262,1745311972647,-2637.987686,0.000545,120]
[358614263,1745311972673,-2637.987686,0.000545,120]
[358614264,1745311972701,-2637.987686,0.000545,120]
[358614265,1745311972728,-2637.987686,0.000545,120]
[358614266,1745311972755,-2637.987686,0.000545,120]
[358614267,1745311972784,-2637.987686,0.000545,120]
[358614268,1745311972811,-611.122299,0.000545,120]
[358614269,1745311972839,-611.122299,0.000545,120]
[358614270,1745311972867,-611.122299,0.000545,120]
[358614271,1745311972893,-611.122299,0.000545,120]
[358614272,1745311972919,-611.122299,0.000545,120]
[358614273,1745311972947,-611.122299,0.000545,120]
[358614274,1745311972973,-611.122299,0.000545,120]
[358614275,1745311973000,-151.0,0.000545,120]
[358614276,1745311973027,-611.122299,0.000545,120]
[358614277,1745311973053,-151.0,0.000545,120]
[358614278,1745311973079,-151.0,0.000545,120]
[358614279,1745311973105,-151.0,0.000545,120]
[358614280,1745311973130,-151.0,0.000545,120]
[358614281,1745311973158,-151.0,0.000545,120]
[358614282,1745311973184,-151.0,0.000545,120]
[358614283,1745311973211,-151.0,0.000545,120]
[358614284,1745311973376,-151.0,0.000545,120]
[358614285,1745311973404,-151.0,0.000545,120]
[358614286,1745311973434,-151.0,0.000545,120]
[358614287,1745311973459,-151.0,0.000545,120]
[358614288,1745311973485,-151.0,0.000545,120]
[358614289,1745311973510,-200.0,0.00054521,30]
[358614290,1745311973540,-500.0,0.00054794,120]
[358614291,1745311973569,-500.0,0.00054794,120]
[358614292,1745311973596,-500.0,0.00054794,120]
[358614293,1745311973622,-500.0,0.00054794,120]
[358614294,1745311973650,-500.0,0.00054794,120]
[358614295,1745311973677,-500.0,0.00054794,120]
[358614296,1745311973704,-500.0,0.00054794,120]
[358614297,1745311973730,-500.0,0.00054794,120]
[358614298,1745311973756,-823.18,0.00054794,120]
[358614299,1745311973786,-397.52039422,0.00054794,120]
[358614300,1745311973813,-500.0,0.00054794,120]
[358614301,1745311973842,-500.0,0.00054794,120]
[358614302,1745311973869,-500.0,0.00054794,120]
[358614303,1745311973896,-600.36941228,0.00054794,120]
[358614304,1745311973922,-612.98469192,0.00054794,120]
[358614305,1745311973949,-500.0,0.00054794,120]
[358614306,1745311973975,-500.0,0.00054794,120]
[358614307,1745311974002,-500.0,0.00054794,120]
[358614308,1745311974029,-500.0,0.00054794,120]
[358614309,1745311974056,-500.0,0.00054794,120]
[358614310,1745311974082,-500.0,0.00054794,120]
[358614311,1745311974108,-500.0,0.00054794,120]
[358614312,1745311974135,-228.42984206,0.00054794,120]
[358614313,1745311974160,-503.12,0.00054794,120]
[358614314,1745311974186,-500.0,0.00054794,120]
[358614315,1745311974212,-500.0,0.00054794,120]
[358614316,1745311974236,-500.0,0.00054794,120]
[358614317,1745311974261,-500.0,0.00054794,120]
[358614318,1745311974286,-500.0,0.00054794,120]
[358614319,1745311974311,-522.59828913,0.00054794,120]
[358614320,1745311974337,-500.0,0.00054794,120]
[358614321,1745311974364,-500.0,0.00054794,120]
[358614322,1745311974390,-500.0,0.00054794,120]
[358614323,1745311974416,-500.0,0.00054794,120]
[358614324,1745311974442,-500.0,0.00054794,120]
[358614325,1745311974466,-239.84835648,0.00054794,30]
[358614326,1745311974492,-25932.18786577,0.00054794,120]
[358614327,1745311974518,-500.0,0.00054794,120]
[358614328,1745311974544,-500.0,0.00054794,120]
[358614329,1745311974569,-425.16869906,0.00054794,35]
[358614330,1745311974596,-500.0,0.00054794,120]
[358614331,1745311974621,-500.0,0.00054794,120]
[358614332,1745311974647,-500.0,0.00054794,120]
[358614333,1745311974674,-151.0,0.00054794,120]
[358614334,1745311974701,-500.0,0.00054794,120]
[358614335,1745311974728,-500.0,0.00054794,120]
[358614336,1745311974755,-500.0,0.00054794,120]
[358614337,1745311974784,-500.0,0.00054794,120]
[358614338,1745311974811,-500.0,0.00054794,120]
[358614339,1745311974839,-500.0,0.00054794,120]
[358614340,1745311974867,-500.0,0.00054794,120]
[358614341,1745311974892,-270.64534209,0.00054794,120]
[358614342,1745311974919,-362.18918811,0.00054794,120]
[358614343,1745311974946,-500.0,0.00054794,30]
[358614344,1745311974972,-299.82174287,0.00054794,120]
[358614345,1745311974999,-341.49021807,0.00054794,120]
[358614346,1745311975026,-500.0,0.00054794,120]
[358614347,1745311975053,-500.0,0.00054794,120]
[358614348,1745311975080,-151.0,0.00054794,120]
[358614349,1745311975106,-500.0,0.00054794,120]
[358614350,1745311975133,-500.0,0.00054794,120]
[358614351,1745311975161,-154.412998,0.00054794,120]
[358614352,1745311975189,-154.412998,0.00054794,120]
[358614353,1745311975216,-500.0,0.00054794,120]
[358614354,1745311975245,-500.0,0.00054794,120]
[358614355,1745311975272,-500.0,0.00054794,120]
[358614356,1745311975298,-500.0,0.00054794,120]
[358614357,1745311975324,-525.782871,0.00054794,120]
[358614358,1745311975351,-500.0,0.00054794,120]
[358614359,1745311975376,-525.782871,0.00054794,120]
[358614360,1745311975402,-500.0,0.00054794,120]
[358614361,1745311975430,-500.0,0.00054794,120]
[358614362,1745311975456,-500.0,0.00054794,120]
[358614363,1745311975483,-852.99,0.00054794,120]
[358614364,1745311975510,-500.0,0.00054794,120]
[358614365,1745311975538,-1000.0,0.00054794,120]
[358614366,1745311975564,-500.0,0.00054794,120]
[358614367,1745311975592,-190.36925693,0.00054794,120]
[358614368,1745311975618,-500.0,0.00054794,120]
[358614369,1745311975646,-500.0,0.00054794,120]
[358614370,1745311975674,-500.0,0.00054794,120]
[358614371,1745311975701,-13988.48,0.00054794,120]
[358614372,1745311975730,-627.60560021,0.00054794,120]
[358614373,1745311975758,-500.0,0.00054794,120]
[358614374,1745311975788,-500.0,0.00054794,120]
[358614375,1745311975818,-5038.92,0.00054794,120]
[358614376,1745311975845,-500.0,0.00054794,120]
[358614377,1745311975874,-500.0,0.00054794,120]
[358614378,1745311976029,-151.0,0.00054794,120]
[358614379,1745311976057,-500.0,0.00054794,120]
[358614380,1745311976084,-151.0,0.00054794,120]
[358614381,1745311976110,-528.49,0.00054794,120]
[358614382,1745311976136,-500.0,0.00054794,120]
[358614383,1745311976162,-3562.71,0.00054794,120]
[358614384,1745311976189,-500.0,0.00054794,120]
[358614385,1745311976217,-500.0,0.00054794,120]
[358614386,1745311976244,-1681.51,0.00054794,120]
[358614387,1745311976270,-500.0,0.00054794,120]
[358614388,1745311976295,-500.0,0.00054794,120]
[358614389,1745311976322,-500.0,0.00054794,120]
[358614390,1745311976346,-500.0,0.00054794,120]
[358614391,1745311976372,-500.0,0.00054794,120]
[358614392,1745311976398,-178.16470497,0.00054794,120]
[358614393,1745311976424,-500.0,0.00054794,120]
[358614394,1745311976454,-500.0,0.00054794,120]
[358614395,1745311976480,-500.0,0.00054794,120]
[358614396,1745311976506,-490.77238264,0.00054794,120]
[358614397,1745311976534,-500.0,0.00054794,120]
[358614398,1745311976560,-1000.0,0.00054794,120]
[358614399,1745311976587,-500.0,0.00054794,120]
[358614400,1745311976612,-500.0,0.00054794,120]
[358614401,1745311976638,-500.0,0.00054794,120]
[358614402,1745311976663,-500.0,0.00054794,120]
[358614403,1745311976689,-500.0,0.00054794,120]
[358614404,1745311976716,-500.0,0.00054794,120]
[358614405,1745311976741,-855.36,0.00054794,120]
[358614406,1745311976766,-500.0,0.00054794,120]
[358614407,1745311976795,-500.0,0.00054794,120]
[358614408,1745311976820,-643.62070081,0.00054794,120]
[358614409,1745311976846,-500.0,0.00054794,120]
[358614410,1745311976873,-500.0,0.00054794,120]
[358614411,1745311976899,-500.0,0.00054794,118]
[358614412,1745311976927,-495.873294,0.00054794,120]
[358614413,1745311976955,-500.0,0.00054794,120]
[358614414,1745311976982,-500.0,0.00054794,120]
[358614415,1745311977011,-500.0,0.00054794,120]
[358614416,1745311977043,-500.0,0.00054794,120]
[358614417,1745311977071,-500.0,0.00054794,120]
[358614418,1745311977097,-495.873294,0.00054794,120]
[358614419,1745311977123,-500.0,0.00054794,120]
[358614420,1745311977149,-500.0,0.00054794,120]
[358614421,1745311977176,-500.0,0.00054794,120]
[358614422,1745311977204,-500.0,0.00054794,120]
[358614423,1745311977230,-500.0,0.00054794,120]
[358614424,1745311977256,-213.85617806,0.00054794,120]
[358614425,1745311977284,-583.13319549,0.00054794,120]
[358614426,1745311977311,-500.0,0.00054794,120]
[358614427,1745311977338,-500.0,0.00054794,120]
[358614428,1745311977365,-500.0,0.00054794,120]
[358614429,1745311977391,-988.96,0.00054794,120]
[358614430,1745311977417,-500.0,0.00054794,120]
[358614431,1745311977443,-172.46694778,0.00054794,120]
[358614432,1745311977470,-500.0,0.00054794,120]
[358614433,1745311977497,-500.0,0.00054794,120]
[358614434,1745311977524,-500.0,0.00054794,120]
[358614435,1745311977550,-500.0,0.00054794,120]
[358614436,1745311977577,-500.0,0.00054794,120]
[358614437,1745311977603,-297.6772645,0.00054794,120]
[358614438,1745311977629,-500.0,0.00054794,120]
[358614439,1745311977655,-500.0,0.00054794,120]
[358614440,1745311977681,-500.0,0.00054794,120]
[358614441,1745311977710,-500.0,0.00054794,120]
[358614442,1745311977736,-379.38634471,0.00054794,120]
[358614443,1745311977763,-615.73623825,0.00054794,120]
[358614444,1745311977790,-500.0,0.00054794,120]
[358614445,1745311977817,-524.35,0.00054794,120]
[358614446,1745311977844,-500.0,0.00054794,120]
[358614447,1745311977871,-500.0,0.00054794,120]
[358614448,1745311977897,-500.0,0.00054794,120]
[358614449,1745311977924,-500.0,0.00054794,120]
[358614450,1745311977952,-500.0,0.00054794,120]
[358614451,1745311977978,-556.65556487,0.00054794,120]
[358614452,1745311978004,-500.0,0.00054794,120]
[358614453,1745311978032,-500.0,0.00054794,120]
[358614454,1745311978059,-500.0,0.00054794,120]
[358614455,1745311978086,-795.78,0.00054794,120]
[358614456,1745311978112,-500.0,0.00054794,120]
[358614457,1745311978139,-500.0,0.00054794,120]
[358614458,1745311978166,-500.0,0.00054794,120]
[358614459,1745311978192,-500.0,0.00054794,120]
[358614460,1745311978219,-500.0,0.00054794,120]
[358614461,1745311978246,-500.0,0.00054794,120]
[358614462,1745311978271,-500.0,0.00054794,120]
[358614463,1745311978298,-500.0,0.00054794,120]
[358614464,1745311978324,-500.0,0.00054794,120]
[358614465,1745311978350,-482.3841004,0.00054794,120]
[358614466,1745311978378,-904.36,0.00054794,120]
[358614467,1745311978405,-1191.65,0.00054794,120]
[358614468,1745311978432,-500.0,0.00054794,120]
[358614469,1745311978459,-605.29,0.00054794,120]
[358614470,1745311978485,-500.0,0.00054794,120]
[358614471,1745311978512,-500.0,0.00054794,120]
[358614472,1745311978537,-246.81763108,0.00054794,120]
[358614473,1745311978689,-500.0,0.00054794,120]
[358614474,1745311978716,-500.0,0.00054794,120]
[358614475,1745311978743,-500.0,0.00054794,120]
[358614476,1745311978771,-500.0,0.00054794,120]
[358614477,1745311978802,-500.0,0.00054794,120]
[358614478,1745311978826,-500.0,0.00054794,120]
[358614479,1745311978854,-500.0,0.00054794,60]
[358614480,1745311978880,-500.0,0.00054794,120]